bitfinex-derivatives/quotes_BTCF0:USTF0_20250930
["timestamp","ask_amount","ask_price","bid_price","bid_amount"]
[1759268755971,1.3280559,114400.0,114390.0,0.03588]
[1759268756269,1.6888559,114400.0,114390.0,0.4455776]
[1759268757473,1.2791583,114400.0,114390.0,0.03588]
[1759268757669,1.6888559,114400.0,114390.0,0.4455776]
[1759268758565,0.8798559,114400.0,114390.0,0.4455776]
[1759268758767,1.6886959,114400.0,114390.0,0.4455776]
[1759268759273,1.2789983,114400.0,114390.0,0.4455776]
[1759268759574,1.6886959,114400.0,114390.0,0.4455776]
[1759268760879,1.6886959,114400.0,114390.0,0.52424399]
[1759268762375,1.2789983,114400.0,114390.0,0.11454639]
[1759268762877,1.2789983,114400.0,114390.0,0.03588]
[1759268772786,1.2789983,114400.0,114390.0,0.11454639]
[1759268773084,1.2789983,114400.0,114390.0,0.03588]
[1759268775890,1.2789983,114400.0,114390.0,0.11454639]
[1759268777087,1.2789983,114400.0,114390.0,0.03588]
[1759268780088,1.68875769,114400.0,114390.0,0.03588]
[1759268780489,1.68875769,114400.0,114390.0,0.09879931]
[1759268782291,1.2789983,114400.0,114390.0,0.09879931]
[1759268782490,1.68875769,114400.0,114390.0,0.09879931]
[1759268783791,1.69378769,114400.0,114390.0,0.06291931]
[1759268787297,1.2840283,114400.0,114390.0,0.06291931]
[1759268787596,1.69378769,114400.0,114390.0,0.06291931]
[1759268788484,0.0873962,114390.0,114380.0,0.50177578]
[1759268788688,0.1084462,114390.0,114380.0,0.52488727]
[1759268789091,0.1084462,114390.0,114380.0,0.11512788]
[1759268789394,0.1084462,114390.0,114380.0,0.52488727]
[1759268792289,0.1084462,114390.0,114380.0,0.52488358]
[1759268792491,0.87900559,114390.0,114380.0,0.11512419]
[1759268792691,0.1084538,114380.0,114370.0,0.56527287]
[1759268792893,1.68617319,114380.0,114370.0,0.10177916]
[1759268793097,1.69890319,114380.0,114370.0,0.07864916]
[1759268793894,0.0874115,114370.0,114360.0,0.55627164]
[1759268794195,0.1084615,114370.0,114360.0,0.44615939]
[1759268794394,0.1084615,114370.0,114360.0,0.5562278]
[1759268795395,0.1084615,114370.0,114360.0,0.14646841]
[1759268795998,0.1084615,114370.0,114360.0,0.0364]
[1759268796193,0.11716458,114370.0,114360.0,0.0364]
[1759268796395,1.32522089,114370.0,114360.0,0.0364]
[1759268797098,0.1084615,114370.0,114360.0,0.0364]
[1759268797398,0.9154615,114370.0,114360.0,0.0364]
[1759268801601,0.9154615,114370.0,114360.0,0.11497308]
[1759268802697,0.9154615,114370.0,114360.0,0.0364]
[1759268804400,0.9154615,114370.0,114360.0,0.09923878]
[1759268813205,1.32522089,114370.0,114360.0,0.09923878]
[1759268815703,1.32522089,114370.0,114360.0,0.0364]
[1759268816206,1.32522089,114370.0,114360.0,0.09921794]
[1759268817306,1.32522089,114370.0,114360.0,0.0364]
[1759268817505,1.32522089,114370.0,114360.0,0.09922864]
[1759268817706,1.32522089,114370.0,114360.0,0.06282864]
[1759268818809,0.9154615,114370.0,114360.0,0.06282864]
[1759268819006,1.32522089,114370.0,114360.0,0.06282864]
[1759268819607,0.1085281,114360.0,114350.0,0.89321374]
[1759268823108,0.1085281,114360.0,114350.0,0.88446247]
[1759268824209,0.51851414,114360.0,114350.0,0.88468912]
[1759268826608,0.51851414,114360.0,114350.0,0.89365866]
[1759268827111,0.51851414,114360.0,114350.0,0.81508558]
[1759268827604,0.51851414,114360.0,114350.0,0.80611604]
[1759268829516,0.51851414,114360.0,114350.0,0.88468912]
[1759268829908,0.51851414,114360.0,114350.0,0.52388912]
[1759268830112,0.87931414,114360.0,114350.0,0.44531604]
[1759268830314,0.87931414,114360.0,114350.0,0.55538445]
[1759268832126,1.69433018,114360.0,114350.0,0.1887282]
[1759268832317,1.69433018,114360.0,114350.0,0.07865979]
[1759268833220,1.28434414,114360.0,114350.0,0.07865979]
[1759268833524,1.69433018,114360.0,114350.0,0.07865979]
[1759268833921,0.1085358,114350.0,114340.0,0.04399021]
[1759268834215,1.68464184,114350.0,114340.0,0.44531604]
[1759268834519,1.68464184,114350.0,114340.0,0.11012612]
[1759268834729,1.68464184,114350.0,114340.0,0.52011216]
[1759268836121,0.0874334,114340.0,114330.0,0.12330612]
[1759268836426,0.51852944,114340.0,114330.0,0.55544216]
[1759268836621,0.51852944,114340.0,114330.0,0.55541847]
[1759268838820,0.87932944,114340.0,114330.0,0.55541847]
[1759268841121,0.87932944,114340.0,114330.0,0.44531604]
[1759268841723,0.4693434,114340.0,114330.0,0.44531604]
[1759268841924,0.87932944,114340.0,114330.0,0.44531604]
[1759268843119,0.87932944,114340.0,114330.0,0.1139186]
[1759268843627,1.28931548,114340.0,114330.0,0.1139186]
[1759268843829,1.30204548,114340.0,114330.0,1e-07]
[1759268844127,1.70204548,114340.0,114330.0,1e-07]
[1759268844432,0.1088411,114330.0,114320.0,0.14524243]
[1759268844630,1.68458714,114330.0,114320.0,0.14524243]
[1759268845025,1.68458714,114330.0,114320.0,0.11010243]
[1759268845230,3.85810714,114330.0,114320.0,0.11010243]
[1759268845431,0.1088487,114320.0,114310.0,0.56396579]
[1759268845627,0.51883474,114320.0,114310.0,0.56396579]
[1759268846132,0.52386474,114320.0,114310.0,0.5201753]
[1759268846324,0.52386474,114320.0,114310.0,0.41007287]
[1759268846524,1.32874474,114320.0,114310.0,0.43229287]
[1759268846830,0.52386474,114320.0,114310.0,0.43229287]
[1759268847030,1.32874474,114320.0,114310.0,0.02230683]
[1759268847233,1.32874474,114320.0,114310.0,0.13228294]
[1759268847624,2.09953078,114320.0,114310.0,0.13228294]
[1759268847932,2.09953078,114320.0,114310.0,0.02230683]
[1759268848130,1.2795587,114320.0,114310.0,0.02230683]
[1759268848430,2.09953078,114320.0,114310.0,0.02230683]
[1759268851628,1.68954474,114320.0,114310.0,0.02230683]
[1759268854336,2.09953078,114320.0,114310.0,0.10082321]
[1759268861041,2.09450078,114320.0,114310.0,0.11467321]
[1759268861339,1.28962078,114320.0,114310.0,0.11467321]
[1759268861538,3.86798078,114320.0,114310.0,0.11467321]
[1759268862540,3.86798078,114320.0,114310.0,0.03615683]
[1759268863242,1.28962078,114320.0,114310.0,0.03615683]
[1759268863542,3.86802078,114320.0,114310.0,0.03615683]
[1759268867044,3.86802078,114320.0,114310.0,8.683e-05]
[1759268867446,3.86802078,114320.0,114310.0,0.02273683]
[1759268868241,1.28962078,114320.0,114310.0,0.02273683]
[1759268868439,3.86790078,114320.0,114310.0,0.02273683]
[1759268870946,3.86790078,114320.0,114310.0,8.683e-05]
[1759268871149,3.87293078,114320.0,114310.0,8.683e-05]
[1759268880355,4.07963078,114320.0,114310.0,8.683e-05]
[1759268881156,4.07460078,114320.0,114310.0,0.02273683]
[1759268881557,4.07460078,114320.0,114310.0,0.03538683]
[1759268882057,1.49632078,114320.0,114310.0,0.03538683]
[1759268882259,4.07400078,114320.0,114310.0,0.03538683]
[1759268882459,4.07903078,114320.0,114310.0,8.683e-05]
[1759268884260,3.66941727,114320.0,114310.0,8.683e-05]
[1759268887468,1.08670727,114320.0,114310.0,0.03538683]
[1759268887766,3.66426727,114320.0,114310.0,0.02273683]
[1759268888063,3.66426727,114320.0,114310.0,8.683e-05]
[1759268888267,3.66929727,114320.0,114310.0,8.683e-05]
[1759268898464,3.30849727,114320.0,114310.0,8.683e-05]
[1759268898665,3.66929727,114320.0,114310.0,8.683e-05]
[1759268901172,3.2589387,114320.0,114310.0,8.683e-05]
[1759268901472,3.66929727,114320.0,114310.0,8.683e-05]
[1759268902879,3.2589387,114320.0,114310.0,8.683e-05]
[1759268903177,3.66929727,114320.0,114310.0,8.683e-05]
[1759268907080,1.09173727,114320.0,114310.0,8.683e-05]
[1759268907377,3.66837727,114320.0,114310.0,0.02205683]
[1759268908577,1.09173727,114320.0,114310.0,8.683e-05]
[1759268909279,3.66829727,114320.0,114310.0,8.683e-05]
[1759268909883,3.66829727,114320.0,114310.0,0.02205683]
[1759268910282,3.66829727,114320.0,114310.0,8.683e-05]
[1759268911573,1.09173727,114320.0,114310.0,8.683e-05]
[1759268911781,3.66825727,114320.0,114310.0,8.683e-05]
[1759268914884,3.2578987,114320.0,114310.0,8.683e-05]
[1759268917084,0.6763487,114320.0,114310.0,0.03475683]
[1759268917283,2.4504687,114320.0,114310.0,0.8451154]
[1759268917477,0.4696487,114320.0,114310.0,0.8451154]
[1759268917684,0.0878487,114320.0,114310.0,0.8451154]
[1759268917875,0.0004,114320.0,114310.0,1.37188898]
[1759268918080,0.80208,114320.0,114310.0,1.37188898]
[1759268918280,0.0882455,114330.0,114320.0,0.1221196]
[1759268918480,0.0882455,114330.0,114320.0,0.9719715]
[1759268918681,0.8271655,114330.0,114320.0,1.3719715]
[1759268918990,0.8275655,114330.0,114320.0,1.3719715]
[1759268919488,0.8275655,114330.0,114320.0,0.9719715]
[1759268921188,0.0878455,114330.0,114320.0,0.9719715]
[1759268921391,0.8291655,114330.0,114320.0,0.9719715]
[1759268921581,0.8897655,114330.0,114320.0,1.3719715]
[1759268921889,0.8897655,114330.0,114320.0,0.9719715]
[1759268922090,0.8893655,114330.0,114320.0,0.9719715]
[1759268922290,0.80232,114330.0,114320.0,0.9719715]
[1759268922589,0.0874394,114340.0,114330.0,0.1221116]
[1759268922789,0.8901194,114340.0,114330.0,0.95615447]
[1759268926288,0.8901194,114340.0,114330.0,0.96480404]
[1759268926587,0.8899194,114340.0,114330.0,1.36480404]
[1759268931188,0.087432,114350.0,114340.0,0.01271]
[1759268931395,0.087432,114350.0,114340.0,0.53248267]
[1759268931396,0.912672,114350.0,114340.0,0.53248267]
[1759268931596,0.911872,114350.0,114340.0,0.53248267]
[1759268931798,0.912272,114350.0,114340.0,0.53248267]
[1759268932289,0.889232,114350.0,114340.0,0.89328267]
[1759268934594,0.889232,114350.0,114340.0,1.29328267]
[1759268934996,0.889232,114350.0,114340.0,1.35616697]
[1759268935188,0.889232,114350.0,114340.0,1.29328267]
[1759268935390,0.889232,114350.0,114340.0,1.35616697]
[1759268935589,0.888832,114350.0,114340.0,1.29328267]
[1759268935790,0.889232,114350.0,114340.0,1.29328267]
[1759268936194,0.889232,114350.0,114340.0,1.37174956]
[1759268937199,0.087832,114350.0,114340.0,1.37174956]
[1759268937400,0.888992,114350.0,114340.0,1.37174956]
[1759268938399,0.888952,114350.0,114340.0,1.37174956]
[1759268938601,0.888552,114350.0,114340.0,1.37174956]
[1759268938799,0.888952,114350.0,114340.0,1.37174956]
[1759268940000,0.80152,114350.0,114340.0,1.37174956]
[1759268940394,0.0004,114350.0,114340.0,1.37174956]
[1759268940593,0.0874246,114360.0,114350.0,0.1221162]
[1759268940899,0.0874246,114360.0,114350.0,0.95599618]
[1759268940900,0.4515846,114360.0,114350.0,0.95599618]
[1759268942696,0.088211,114370.0,114360.0,0.1221086]
[1759268942892,0.088211,114370.0,114360.0,0.93246717]
[1759268943097,0.763651,114370.0,114360.0,1.29326717]
[1759268943296,0.764051,114370.0,114360.0,1.29326717]
[1759268943605,0.764051,114370.0,114360.0,0.8829086]
[1759268943806,0.764051,114370.0,114360.0,1.29326717]
[1759268944306,0.764051,114370.0,114360.0,1.7025872]
[1759268946592,0.087811,114370.0,114360.0,1.7025872]
[1759268946798,0.888571,114370.0,114360.0,1.7025872]
[1759268948004,0.888491,114370.0,114360.0,1.7025872]
[1759268948197,0.888091,114370.0,114360.0,1.7025872]
[1759268948399,0.888491,114370.0,114360.0,1.7025872]
[1759268949007,0.888451,114370.0,114360.0,1.7025872]
[1759268956613,0.888451,114370.0,114360.0,0.8829086]
[1759268956919,0.888451,114370.0,114360.0,1.7025872]
[1759268959311,0.888451,114370.0,114360.0,1.76530861]
[1759268965226,0.888451,114370.0,114360.0,1.7025872]
[1759268968227,0.888451,114370.0,114360.0,1.78105409]
[1759268968823,0.087811,114370.0,114360.0,1.78105409]
[1759268969029,0.887451,114370.0,114360.0,1.78105409]
[1759268969228,0.887851,114370.0,114360.0,1.78105409]
[1759268971332,0.887691,114370.0,114360.0,2.1124265]
[1759268971534,0.887691,114370.0,114360.0,1.7025872]
[1759268971729,0.887691,114370.0,114360.0,1.78105409]
[1759268974030,0.887691,114370.0,114360.0,1.7025872]
[1759268974333,0.887691,114370.0,114360.0,2.1124265]
[1759268974934,0.887691,114370.0,114360.0,2.1911154]
[1759268975535,0.887691,114370.0,114360.0,2.1124265]
[1759268975937,0.887691,114370.0,114360.0,1.7025872]
[1759268976630,0.887691,114370.0,114360.0,2.1124265]
[1759268979431,0.887691,114370.0,114360.0,1.79111853]
[1759268981339,0.887691,114370.0,114360.0,1.7124265]
[1759268984630,0.887691,114370.0,114360.0,1.79111871]
[1759268989336,0.909581,114370.0,114360.0,0.56160081]
[1759268989545,0.909581,114370.0,114360.0,1.79111871]
[1759268989942,0.887691,114370.0,114360.0,1.79111871]
[1759268990242,0.887691,114370.0,114360.0,2.15191871]
[1759268991542,0.887691,114370.0,114360.0,1.65466081]
[1759268991738,0.887691,114370.0,114360.0,1.5759686]
[1759268991937,1.287691,114370.0,114360.0,1.5759686]
[1759268992138,1.287691,114370.0,114360.0,1.68594471]
[1759268994146,1.287691,114370.0,114360.0,1.77336351]
[1759268994950,1.287691,114370.0,114360.0,1.68594471]
[1759268995141,1.287691,114370.0,114360.0,1.76463368]
[1759268995450,1.287691,114370.0,114360.0,1.65465757]
[1759268995949,1.287691,114370.0,114360.0,1.5759686]
[1759269000440,1.287691,114370.0,114360.0,1.6633875]
[1759269001049,1.287691,114370.0,114360.0,1.77336361]
[1759269003353,1.287691,114370.0,114360.0,1.6633875]
[1759269003655,1.309581,114370.0,114360.0,0.8437089]
[1759269003952,1.309581,114370.0,114360.0,1.6633875]
[1759269005354,1.309581,114370.0,114360.0,1.77336361]
[1759269005755,1.309581,114370.0,114360.0,1.6633875]
[1759269006254,1.309581,114370.0,114360.0,1.6633615]
[1759269007660,1.309581,114370.0,114360.0,0.8437089]
[1759269007849,1.309581,114370.0,114360.0,1.6633615]
[1759269009758,1.309581,114370.0,114360.0,1.74195654]
[1759269010367,1.309581,114370.0,114360.0,1.6633615]
[1759269010751,1.309581,114370.0,114360.0,1.74195627]
[1759269013764,1.309581,114370.0,114360.0,1.6633615]
[1759269018069,1.309581,114370.0,114360.0,1.74196452]
[1759269019364,1.309581,114370.0,114360.0,1.6633615]
[1759269025377,1.309581,114370.0,114360.0,1.77333761]
[1759269025767,1.309581,114370.0,114360.0,1.74202395]
[1759269035181,1.29537139,114370.0,114360.0,1.74202395]
[1759269035782,1.27547794,114370.0,114360.0,1.74202395]
[1759269039484,0.87547794,114370.0,114360.0,1.74202395]
[1759269043677,0.87547794,114370.0,114360.0,1.6633615]
[1759269045091,0.86126835,114370.0,114360.0,1.6633615]
[1759269045790,0.86126835,114370.0,114360.0,1.74204469]
[1759269046091,0.86126835,114370.0,114360.0,1.6633615]
[1759269050796,0.86126835,114370.0,114360.0,1.74205697]
[1759269051595,0.86126835,114370.0,114360.0,1.2535368]
[1759269057498,0.86126835,114370.0,114360.0,0.8437105]
[1759269057704,0.86126835,114370.0,114360.0,1.2535368]
[1759269057891,0.86126835,114370.0,114360.0,1.1661163]
[1759269058199,0.82217,114370.0,114360.0,1.1661163]
[1759269058800,0.9095855,114370.0,114360.0,0.8053163]
[1759269059302,0.9095855,114370.0,114360.0,0.4445163]
[1759269059599,1.3095855,114370.0,114360.0,0.03469]
[1759269059801,1.3095855,114370.0,114360.0,0.09760282]
[1759269060994,1.3095855,114370.0,114360.0,0.50742912]
[1759269062905,1.3095855,114370.0,114360.0,0.09760282]
[1759269063199,1.3095855,114370.0,114360.0,0.50742912]
[1759269064890,0.5097055,114370.0,114360.0,0.50742912]
[1759269065095,1.3073055,114370.0,114360.0,0.50742912]
[1759269066296,1.3073055,114370.0,114360.0,0.09760282]
[1759269066500,2.0779318,114370.0,114360.0,0.09760282]
[1759269066799,2.0829618,114370.0,114360.0,0.06291282]
[1759269067203,2.15047987,114370.0,114350.0,0.09208547]
[1759269067499,0.0874206,114360.0,114350.0,0.09208547]
[1759269067801,0.0874206,114360.0,114350.0,0.11387547]
[1759269068101,0.07320814,114360.0,114350.0,0.11387547]
[1759269068293,0.07320814,114360.0,114350.0,0.52387347]
[1759269070301,0.07320814,114360.0,114350.0,0.50803661]
[1759269070502,0.48320614,114360.0,114350.0,0.50803661]
[1759269070805,0.4918312,114360.0,114350.0,0.445178]
[1759269071803,0.0818332,114360.0,114350.0,0.445178]
[1759269073302,0.4918312,114360.0,114350.0,0.445178]
[1759269075108,0.8526312,114360.0,114350.0,0.52387347]
[1759269075307,1.2526312,114360.0,114350.0,0.01339]
[1759269075507,0.0874282,114350.0,114340.0,0.52319347]
[1759269075803,1.63572792,114350.0,114340.0,0.09140547]
[1759269076003,1.63572792,114350.0,114340.0,0.01271]
[1759269076307,1.63572792,114350.0,114340.0,0.0345]
[1759269077001,2.03572792,114350.0,114340.0,0.0345]
[1759269077307,2.03572792,114350.0,114340.0,0.11307372]
[1759269078108,2.02151399,114350.0,114340.0,0.11307372]
[1759269079397,2.02151399,114350.0,114340.0,0.09735701]
[1759269080810,1.61151599,114350.0,114340.0,0.09735701]
[1759269081109,2.02151399,114350.0,114340.0,0.09735701]
[1759269082108,2.02151399,114350.0,114340.0,0.0345]
[1759269083311,2.02151399,114350.0,114340.0,0.01271]
[1759269084114,2.02151399,114350.0,114340.0,0.07556701]
[1759269084312,2.02151399,114350.0,114340.0,0.01271]
[1759269088013,2.02151399,114350.0,114340.0,0.03407]
[1759269088914,2.02151399,114350.0,114340.0,0.01271]
[1759269089917,0.0732205,114340.0,114330.0,0.09691701]
[1759269090217,0.8440185,114340.0,114330.0,0.09691701]
[1759269090611,0.8440185,114340.0,114330.0,0.07555701]
[1759269090812,1.2540165,114340.0,114330.0,0.06285701]
[1759269093210,0.0874437,114330.0,114320.0,0.50760501]
[1759269093410,1.6553217,114330.0,114320.0,0.09760701]
[1759269095118,1.6553617,114330.0,114320.0,0.09760701]
[1759269096521,1.6552817,114330.0,114320.0,0.50760501]
[1759269098518,1.2452837,114330.0,114320.0,0.50760501]
[1759269098719,1.6552817,114330.0,114320.0,0.50760501]
[1759269100325,0.8582417,114330.0,114320.0,0.50760501]
[1759269100527,1.6552417,114330.0,114320.0,0.50760501]
[1759269101524,1.64102511,114330.0,114320.0,0.09760701]
[1759269101824,2.04102511,114330.0,114320.0,0.01339]
[1759269102020,0.0874514,114320.0,114310.0,0.52340855]
[1759269102220,0.8582494,114320.0,114310.0,0.52340855]
[1759269102518,0.8582494,114320.0,114310.0,0.44483483]
[1759269104729,0.8582494,114320.0,114310.0,0.03483683]
[1759269106517,0.8582494,114320.0,114310.0,0.44483483]
[1759269107125,0.4482514,114320.0,114310.0,0.44483483]
[1759269107326,0.8582494,114320.0,114310.0,0.44483483]
[1759269108132,1.2451714,114320.0,114310.0,0.44483483]
[1759269108525,0.4482514,114320.0,114310.0,0.44483483]
[1759269108926,1.2451314,114320.0,114310.0,0.44483483]
[1759269110634,0.4482514,114320.0,114310.0,0.44483483]
[1759269110935,1.2451314,114320.0,114310.0,0.44483483]
[1759269112028,1.6551294,114320.0,114310.0,0.44483483]
[1759269113829,1.6551294,114320.0,114310.0,0.50768211]
[1759269114134,1.6551294,114320.0,114310.0,0.09768411]
[1759269114722,1.66408192,114320.0,114310.0,0.09768411]
[1759269114930,1.64986387,114320.0,114310.0,0.09768411]
[1759269116934,1.64986387,114320.0,114310.0,0.07632411]
[1759269117327,1.28906387,114320.0,114310.0,0.07632411]
[1759269117633,1.64986387,114320.0,114310.0,0.07632411]
[1759269120337,1.64986387,114320.0,114310.0,0.06293411]
[1759269120533,2.05986187,114320.0,114310.0,0.06293411]
[1759269125044,2.04564349,114320.0,114310.0,0.07623411]
[1759269125343,3.81944349,114320.0,114310.0,0.03632683]
[1759269125746,3.81944349,114320.0,114310.0,0.09917411]
[1759269126846,3.81944349,114320.0,114310.0,0.03632683]
[1759269128149,3.81944349,114320.0,114310.0,0.09917411]
[1759269128343,3.81944349,114320.0,114310.0,0.03632683]
[1759269129046,3.81944349,114320.0,114310.0,0.09917411]
[1759269130236,3.40983264,114320.0,114310.0,0.09917411]
[1759269130449,3.40983264,114320.0,114310.0,0.01338683]
[1759269130747,3.40983264,114320.0,114310.0,0.03632683]
[1759269133148,3.40983264,114320.0,114310.0,0.09917411]
[1759269135749,3.61653264,114320.0,114310.0,0.09917411]
[1759269136846,3.61653264,114320.0,114310.0,0.06293411]
[1759269140555,3.60231343,114320.0,114310.0,0.06293411]
[1759269141045,3.60231343,114320.0,114310.0,0.07671411]
[1759269142654,3.60231343,114320.0,114310.0,0.01386683]
[1759269142855,3.60231343,114320.0,114310.0,0.07683312]
[1759269144259,3.60231343,114320.0,114310.0,0.01386683]
[1759269144658,3.60231343,114320.0,114310.0,0.07683495]
[1759269144861,3.60231343,114320.0,114310.0,0.06305495]
[1759269149765,1.03163343,114320.0,114310.0,0.06305495]
[1759269149958,3.60207343,114320.0,114310.0,0.07683495]
[1759269151167,3.60207343,114320.0,114310.0,0.01386683]
[1759269155465,1.03163343,114320.0,114310.0,0.03537683]
[1759269155665,3.60199343,114320.0,114310.0,0.03537683]
[1759269156468,1.03163343,114320.0,114310.0,0.03537683]
[1759269156656,3.60195343,114320.0,114310.0,0.03537683]
[1759269157368,1.03163343,114320.0,114310.0,0.03537683]
[1759269157667,3.60199343,114320.0,114310.0,0.03537683]
[1759269158070,1.03163343,114320.0,114310.0,0.03537683]
[1759269158261,3.60199343,114320.0,114310.0,0.03537683]
[1759269160870,3.60199343,114320.0,114310.0,0.01386683]
[1759269163072,3.55719767,114320.0,114310.0,0.01386683]
[1759269163570,0.98683767,114320.0,114310.0,0.01386683]
[1759269163770,3.55711767,114320.0,114310.0,0.01386683]
[1759269163960,3.64456907,114320.0,114310.0,0.01386683]
[1759269165164,3.64456907,114320.0,114310.0,0.07683495]
[1759269166472,3.28376907,114320.0,114310.0,0.07683495]
[1759269166671,4.00536907,114320.0,114310.0,0.07683495]
[1759269169977,1.43508907,114320.0,114310.0,0.10012495]
[1759269170475,4.00524907,114320.0,114310.0,0.10012495]
[1759269171472,1.43508907,114320.0,114310.0,0.10012495]
[1759269171676,4.00524907,114320.0,114310.0,0.10012495]
[1759269173077,3.99102933,114320.0,114310.0,0.10012495]
[1759269173275,1.42086933,114320.0,114310.0,0.10012495]
[1759269173479,3.99098933,114320.0,114310.0,0.10012495]
[1759269173679,3.99954939,114320.0,114310.0,0.10012495]
[1759269173972,1.42942939,114320.0,114310.0,0.10012495]
[1759269174179,3.99950939,114320.0,114310.0,0.10012495]
[1759269176579,3.99946939,114320.0,114310.0,0.10012495]
[1759269177780,3.99946939,114320.0,114310.0,0.03715683]
[1759269178383,3.99946939,114320.0,114310.0,0.10012495]
[1759269179682,1.42942939,114320.0,114310.0,0.10012495]
[1759269179881,2.22518939,114320.0,114310.0,0.10012495]
[1759269183185,2.21096965,114320.0,114310.0,0.10012495]
[1759269185781,1.0157514,114320.0,114310.0,0.9105101]
[1759269185984,1.4505514,114320.0,114310.0,0.9261157]
[1759269186180,1.4509514,114320.0,114310.0,0.84754198]
[1759269186386,1.4509514,114320.0,114310.0,0.9261157]
[1759269187077,0.6553514,114320.0,114310.0,0.9261157]
[1759269187279,1.4509114,114320.0,114310.0,0.9261157]
[1759269187480,1.4509114,114320.0,114310.0,0.84754198]
[1759269188885,1.0901114,114320.0,114310.0,0.84754198]
[1759269189082,0.8834114,114320.0,114310.0,0.84754198]
[1759269190687,0.8834114,114320.0,114310.0,1.20834198]
[1759269190882,0.8834114,114320.0,114310.0,1.2869157]
[1759269191487,0.8834114,114320.0,114310.0,1.20834198]
[1759269192184,0.8834114,114320.0,114310.0,0.79795683]
[1759269192401,0.8834114,114320.0,114310.0,1.20817148]
[1759269193089,0.86919427,114320.0,114310.0,1.20817148]
[1759269195088,0.07363427,114320.0,114310.0,1.20817148]
[1759269195389,0.86903427,114320.0,114310.0,1.20817148]
[1759269195885,0.07363427,114320.0,114310.0,1.20817148]
[1759269196188,0.86899427,114320.0,114310.0,1.2867452]
[1759269198290,0.86899427,114320.0,114310.0,1.20817148]
[1759269198682,0.86899427,114320.0,114310.0,1.2867452]
[1759269200995,0.07363427,114320.0,114310.0,1.43708688]
[1759269201293,0.86895427,114320.0,114310.0,1.35851316]
[1759269201694,0.86895427,114320.0,114310.0,1.76872781]
[1759269202397,0.86895427,114320.0,114310.0,1.35851316]
[1759269203493,0.86895427,114320.0,114310.0,1.76872781]
[1759269206396,0.07363427,114320.0,114310.0,1.70584583]
[1759269206595,0.86883427,114320.0,114310.0,1.70584583]
[1759269207398,0.85461732,114320.0,114310.0,1.70584583]
[1759269207594,0.85461732,114320.0,114310.0,1.78441955]
[1759269209101,0.83471487,114320.0,114310.0,1.78441955]
[1759269209296,0.83471487,114320.0,114310.0,1.70584583]
[1759269209495,0.03951487,114320.0,114310.0,1.81582194]
[1759269209896,0.83427487,114320.0,114310.0,1.81582194]
[1759269210198,0.03951487,114320.0,114310.0,1.81582194]
[1759269210499,0.0004,114320.0,114310.0,1.89440138]
[1759269210702,0.05412346,114330.0,114320.0,0.122122]
[1759269210703,0.05332346,114330.0,114320.0,0.122122]
[1759269211003,0.58544346,114330.0,114320.0,1.41332741]
[1759269211302,0.58544346,114330.0,114320.0,1.49189101]
[1759269211606,0.58464346,114330.0,114320.0,1.3819149]
[1759269211900,0.58504346,114330.0,114320.0,1.3819149]
[1759269213290,0.0004,114330.0,114320.0,2.19212955]
[1759269213597,0.52916,114330.0,114320.0,2.19212955]
[1759269214198,0.52956,114330.0,114320.0,2.19212955]
[1759269214901,0.52956,114330.0,114320.0,2.22354206]
[1759269215101,0.0732205,114340.0,114330.0,0.1221144]
[1759269215402,0.7607805,114340.0,114330.0,1.38187593]
[1759269215896,0.0740205,114340.0,114330.0,1.38187593]
[1759269216097,0.0874338,114350.0,114340.0,0.1221067]
[1759269216298,0.8832738,114350.0,114340.0,1.71355065]
[1759269216601,0.8832738,114350.0,114340.0,1.303336]
[1759269216900,0.8824738,114350.0,114340.0,1.71355065]
[1759269217090,0.8824738,114350.0,114340.0,1.79208288]
[1759269217294,0.8828738,114350.0,114340.0,1.71355065]
[1759269217491,0.86866068,114350.0,114340.0,1.71355065]
[1759269217710,0.86866068,114350.0,114340.0,1.72906898]
[1759269218390,0.07362068,114350.0,114340.0,1.72906898]
[1759269218595,0.46490068,114350.0,114340.0,2.20760121]
[1759269219296,0.46490068,114350.0,114340.0,2.12906898]
[1759269219506,0.46490068,114350.0,114340.0,1.72906898]
[1759269219805,0.46490068,114350.0,114340.0,1.79183537]
[1759269220303,0.39168,114350.0,114340.0,1.79183537]
[1759269220699,0.39168,114350.0,114340.0,1.72906898]
[1759269221301,0.0004,114350.0,114340.0,2.12906898]
[1759269221501,0.0004,114350.0,114340.0,2.20760121]
[1759269221702,0.2282,114360.0,114350.0,0.1220991]
[1759269221909,0.0008,114360.0,114350.0,1.77628553]
[1759269222208,0.5918538,114370.0,114360.0,0.1220914]
[1759269222403,0.5926538,114370.0,114360.0,1.3033207]
[1759269222706,0.0882138,114370.0,114360.0,1.3033207]
[1759269222907,0.0882138,114370.0,114360.0,1.71353535]
[1759269222908,0.59028,114370.0,114360.0,1.71353535]
[1759269225408,0.0008,114370.0,114360.0,1.71353535]
[1759269225597,0.8821714,114380.0,114370.0,0.1220838]
[1759269225804,0.8829714,114380.0,114370.0,1.3033131]
[1759269231104,0.0882114,114380.0,114370.0,1.3033131]
[1759269231310,0.6670914,114380.0,114370.0,1.3033131]
[1759269231497,0.6662914,114380.0,114370.0,1.3033131]
[1759269231903,0.6666914,114380.0,114370.0,1.3033131]
[1759269233603,0.087404,114390.0,114380.0,0.1233822]
[1759269233804,0.882764,114390.0,114380.0,0.9438115]
[1759269234011,0.881964,114390.0,114380.0,0.9438115]
[1759269234511,0.882364,114390.0,114380.0,0.9438115]
[1759269234699,0.882364,114390.0,114380.0,0.95941793]
[1759269235812,0.882364,114390.0,114380.0,1.32021793]
[1759269236003,0.087804,114390.0,114380.0,1.32021793]
[1759269236410,0.882324,114390.0,114380.0,1.32021793]
[1759269236608,0.881924,114390.0,114380.0,1.32021793]
[1759269236908,0.882324,114390.0,114380.0,1.32021793]
[1759269238815,0.904884,114390.0,114380.0,1.32021793]
[1759269239016,0.882324,114390.0,114380.0,1.32021793]
[1759269242621,0.881844,114390.0,114380.0,1.73043258]
[1759269242917,0.882244,114390.0,114380.0,1.73043258]
[1759269244430,0.087804,114390.0,114380.0,2.13043258]
[1759269244622,0.881804,114390.0,114380.0,2.13043258]
[1759269244824,0.882204,114390.0,114380.0,2.13043258]
[1759269246129,0.087804,114390.0,114380.0,2.13043258]
[1759269246425,0.751844,114390.0,114380.0,2.13043258]
[1759269248526,0.71774672,114390.0,114380.0,2.13043258]
[1759269248732,0.71774672,114390.0,114380.0,2.24040869]
[1759269251135,0.71774672,114390.0,114380.0,2.24041259]
[1759269251431,0.71774672,114390.0,114380.0,1.40552196]
[1759269251628,0.05370672,114390.0,114380.0,1.38295195]
[1759269252336,0.05370672,114390.0,114380.0,1.32022183]
[1759269254231,0.05370672,114390.0,114380.0,0.90946368]
[1759269254432,0.84798672,114390.0,114380.0,0.90946368]
[1759269254631,0.87054672,114390.0,114380.0,0.90946368]
[1759269255338,0.07626672,114390.0,114380.0,0.90946368]
[1759269255640,0.84790672,114390.0,114380.0,0.90946368]
[1759269256643,0.05370672,114390.0,114380.0,0.90946368]
[1759269256832,0.80390672,114390.0,114380.0,0.90946368]